Workbook

Sheet Výstup
A1: Mistrovství ČR pro rok 2018
A2: Juniorky | O2: kvalifikace 1 × 120 hs, finále 1 × 120 hs
A3: Datum: 28. - 29. dubna 2018 | O3: Kuželna: SK Slovan Rosice
A4: Kombinace | D4: Kvalifikace | H4: Finále | L4: Celkem
A5: Poř | B5: Jméno | C5: Oddíl | D5: Pl | E5: Do | F5: Ch | G5: Cel | H5: Pl | I5: Do | J5: Ch | K5: Cel | L5: Pl | M5: Do | N5: Ch | O5: Cel
A6: 1 | B6: Topičová Natálie | C6: KK Slovan Rosice | D6: 406 | E6: 204 | F6: 2 | G6: 610 | H6: 395 | I6: 227 | J6: 1 | K6: 622 | L6: =D6+H6 -> 801 | M6: =E6+I6 -> 431 | N6: =F6+J6 -> 3 | O6: =G6+K6 -> 1232
A7: 2 | B7: Mašlaňová Anna | C7: TJ Kelč | D7: 353 | E7: 187 | F7: 4 | G7: 540 | H7: 383 | I7: 205 | J7: 1 | K7: 588 | L7: =D7+H7 -> 736 | M7: =E7+I7 -> 392 | N7: =F7+J7 -> 5 | O7: =G7+K7 -> 1128
A8: 3 | B8: Pytlíková Denisa | C8: SKK Rokycany | D8: 369 | E8: 181 | F8: 4 | G8: 550 | H8: 418 | I8: 158 | J8: 7 | K8: 576 | L8: =D8+H8 -> 787 | M8: =E8+I8 -> 339 | N8: =F8+J8 -> 11 | O8: =G8+K8 -> 1126
A9: 4 | B9: Portyšová Nikola | C9: SKK Jičín | D9: 370 | E9: 186 | F9: 2 | G9: 556 | H9: 379 | I9: 188 | J9: 3 | K9: 567 | L9: =D9+H9 -> 749 | M9: =E9+I9 -> 374 | N9: =F9+J9 -> 5 | O9: =G9+K9 -> 1123
A10: 5 | B10: Lidman Linda | C10: TJ Jiskra Hazlov | D10: 368 | E10: 180 | F10: 1 | G10: 548 | H10: 365 | I10: 205 | J10: 2 | K10: 570 | L10: =D10+H10 -> 733 | M10: =E10+I10 -> 385 | N10: =F10+J10 -> 3 | O10: =G10+K10 -> 1118
A11: 6 | B11: Pavelková Monika | C11: TJ Spartak Přerov | D11: 357 | E11: 174 | F11: 6 | G11: 531 | H11: 374 | I11: 205 | J11: 5 | K11: 579 | L11: =D11+H11 -> 731 | M11: =E11+I11 -> 379 | N11: =F11+J11 -> 11 | O11: =G11+K11 -> 1110
A12: 7 | B12: Wajsarová Monika | C12: TJ Dynamo Liberec | D12: 353 | E12: 177 | F12: 1 | G12: 530 | H12: 376 | I12: 203 | J12: 1 | K12: 579 | L12: =D12+H12 -> 729 | M12: =E12+I12 -> 380 | N12: =F12+J12 -> 2 | O12: =G12+K12 -> 1109
A13: 8 | B13: Buďová Tereza | C13: TJ Nové Město na Moravě | D13: 349 | E13: 170 | F13: 7 | G13: 519 | H13: 368 | I13: 219 | J13: 1 | K13: 587 | L13: =D13+H13 -> 717 | M13: =E13+I13 -> 389 | N13: =F13+J13 -> 8 | O13: =G13+K13 -> 1106
A14: 9 | B14: Kubáčková Eliška | C14: TJ Sokol Husovice | D14: 374 | E14: 172 | F14: 4 | G14: 546 | H14: 381 | I14: 171 | J14: 6 | K14: 552 | L14: =D14+H14 -> 755 | M14: =E14+I14 -> 343 | N14: =F14+J14 -> 10 | O14: =G14+K14 -> 1098
A15: 10 | B15: Maněnová Monika | C15: TJ Šabina | D15: 389 | E15: 174 | F15: 4 | G15: 563 | H15: 358 | I15: 173 | J15: 9 | K15: 531 | L15: =D15+H15 -> 747 | M15: =E15+I15 -> 347 | N15: =F15+J15 -> 13 | O15: =G15+K15 -> 1094
A16: 11 | B16: Janyšková Barbora | C16: TJ Sokol Sedlnice | D16: 387 | E16: 180 | F16: 3 | G16: 567 | H16: 350 | I16: 175 | J16: 4 | K16: 525 | L16: =D16+H16 -> 737 | M16: =E16+I16 -> 355 | N16: =F16+J16 -> 7 | O16: =G16+K16 -> 1092
A17: 12 | B17: Šimková Jitka | C17: SK Podlužan Prušánky | D17: 345 | E17: 194 | F17: 4 | G17: 539 | H17: 371 | I17: 175 | J17: 6 | K17: 546 | L17: =D17+H17 -> 716 | M17: =E17+I17 -> 369 | N17: =F17+J17 -> 10 | O17: =G17+K17 -> 1085
A18: 13 | B18: Niklová Monika | C18: TJ Sokol Vracov | D18: 367 | E18: 194 | F18: 3 | G18: 561 | H18: 360 | I18: 161 | J18: 5 | K18: 521 | L18: =D18+H18 -> 727 | M18: =E18+I18 -> 355 | N18: =F18+J18 -> 8 | O18: =G18+K18 -> 1082
A19: 14 | B19: Vašáková Barbora | C19: TJ Loko Ústí nad Labem | D19: 378 | E19: 180 | F19: 5 | G19: 558 | H19: 351 | I19: 172 | J19: 6 | K19: 523 | L19: =D19+H19 -> 729 | M19: =E19+I19 -> 352 | N19: =F19+J19 -> 11 | O19: =G19+K19 -> 1081
A20: 15 | B20: Zajacová Michaela | C20: KK Blansko | D20: 357 | E20: 173 | F20: 7 | G20: 530 | H20: 383 | I20: 166 | J20: 10 | K20: 549 | L20: =D20+H20 -> 740 | M20: =E20+I20 -> 339 | N20: =F20+J20 -> 17 | O20: =G20+K20 -> 1079
A21: 16 | B21: Utíkalová Karoline | C21: TJ Jiskra Hazlov | D21: 361 | E21: 163 | F21: 8 | G21: 524 | H21: 367 | I21: 186 | J21: 3 | K21: 553 | L21: =D21+H21 -> 728 | M21: =E21+I21 -> 349 | N21: =F21+J21 -> 11 | O21: =G21+K21 -> 1077
A22: 17 | B22: Vrecková Hana | C22: TJ Jiskra Nová Bystřice | D22: 366 | E22: 166 | F22: 12 | G22: 532 | H22: 381 | I22: 163 | J22: 8 | K22: 544 | L22: =D22+H22 -> 747 | M22: =E22+I22 -> 329 | N22: =F22+J22 -> 20 | O22: =G22+K22 -> 1076
A23: 18 | B23: Beranová Hana | C23: SK Baník Ratíškovice | D23: 353 | E23: 185 | F23: 4 | G23: 538 | H23: 351 | I23: 182 | J23: 7 | K23: 533 | L23: =D23+H23 -> 704 | M23: =E23+I23 -> 367 | N23: =F23+J23 -> 11 | O23: =G23+K23 -> 1071
A24: 19 | B24: Štursová Tereza | C24: TJ Lomnice | D24: 362 | E24: 168 | F24: 7 | G24: 530 | H24: 363 | I24: 175 | J24: 5 | K24: 538 | L24: =D24+H24 -> 725 | M24: =E24+I24 -> 343 | N24: =F24+J24 -> 12 | O24: =G24+K24 -> 1068
A25: 20 | B25: Běhounová Michaela | C25: TJ Jiskra Nová Bystřice | D25: 365 | E25: 180 | F25: 3 | G25: 545 | H25: 352 | I25: 169 | J25: 6 | K25: 521 | L25: =D25+H25 -> 717 | M25: =E25+I25 -> 349 | N25: =F25+J25 -> 9 | O25: =G25+K25 -> 1066
A26: 21 | B26: Betuštiaková Stanislava | C26: Sokol Nové Hrady | D26: 356 | E26: 174 | F26: 9 | G26: 530 | H26: 364 | I26: 158 | J26: 16 | K26: 522 | L26: =D26+H26 -> 720 | M26: =E26+I26 -> 332 | N26: =F26+J26 -> 25 | O26: =G26+K26 -> 1052
A27: 22 | B27: Zimáková Kristýna | C27: KC Zlín | D27: 378 | E27: 153 | F27: 7 | G27: 531 | H27: 370 | I27: 144 | J27: 11 | K27: 514 | L27: =D27+H27 -> 748 | M27: =E27+I27 -> 297 | N27: =F27+J27 -> 18 | O27: =G27+K27 -> 1045
A28: 23 | B28: Miláčková Klára | C28: TJ Spartak Kutná Hora | D28: 349 | E28: 176 | F28: 6 | G28: 525 | H28: 350 | I28: 167 | J28: 11 | K28: 517 | L28: =D28+H28 -> 699 | M28: =E28+I28 -> 343 | N28: =F28+J28 -> 17 | O28: =G28+K28 -> 1042
A29: 24 | B29: Žáčková Michaela | C29: KK PSJ Jihlava | D29: 355 | E29: 171 | F29: 7 | G29: 526 | H29: 341 | I29: 163 | J29: 6 | K29: 504 | L29: =D29+H29 -> 696 | M29: =E29+I29 -> 334 | N29: =F29+J29 -> 13 | O29: =G29+K29 -> 1030
A30: 25 | B30: Kusiová Aneta | C30: KK Slavoj Žirovnice | D30: 358 | E30: 154 | F30: 8 | G30: 512
A31: 26 | B31: Presová Veronika | C31: TJ Sokol Vracov | D31: 342 | E31: 165 | F31: 4 | G31: 507
A32: 27 | B32: Nálevková Denisa | C32: SKK Hořice | D32: 341 | E32: 159 | F32: 7 | G32: 500
A33: 28 | B33: Weissová Michaela | C33: KK Jiří Poděbrady | D33: 339 | E33: 158 | F33: 6 | G33: 497
A34: 29 | B34: Vajdíková Lucie | C34: TJ Lomnice | D34: 356 | E34: 141 | F34: 12 | G34: 497
A35: 30 | B35: Rubášová Michaela | C35: TJ Sokol Kdyně | D35: 361 | E35: 136 | F35: 18 | G35: 497
A36: 31 | B36: Šustková Petra | C36: KC Zlín | D36: 339 | E36: 149 | F36: 5 | G36: 488
A37: 32 | B37: Fejfarová Martina | C37: SKK Vrchlabí | D37: 322 | E37: 151 | F37: 14 | G37: 473
A38: 33 | B38: Doškářová Anna | C38: KK Kosmonosy | D38: 339 | E38: 133 | F38: 14 | G38: 472
A39: 34 | B39: Betuštiaková Natálie | C39: Sokol Nové Hrady | D39: 341 | E39: 117 | F39: 14 | G39: 458
A40: 35 | B40: Schuldová Radka | C40: Kuželky Holýšov | D40: 317 | E40: 130 | F40: 15 | G40: 447
A41: 36 | B41: Dinnebierová Ilona | C41: TJ Start Jihlava | D41: 315 | E41: 128 | F41: 13 | G41: 443
A45: =A1 -> Mistrovství ČR pro rok 2018
A46: Juniorky
A47: Datum: 29. dubna 2018 | G47: =O3 -> Kuželna: SK Slovan Rosice
A48: 120 hs
A49: Poř | B49: Jméno | C49: Oddíl | D49: Pl | E49: Do | F49: Ch | G49: Cel
A50: 1 | B50: Topičová Natálie | C50: KK Slovan Rosice | D50: 395 | E50: 227 | F50: 1 | G50: 622
A51: 2 | B51: Mašlaňová Anna | C51: TJ Kelč | D51: 383 | E51: 205 | F51: 1 | G51: 588
A52: 3 | B52: Buďová Tereza | C52: TJ Nové Město na Moravě | D52: 368 | E52: 219 | F52: 1 | G52: 587
A53: 4 | B53: Pavelková Monika | C53: TJ Spartak Přerov | D53: 374 | E53: 205 | F53: 5 | G53: 579
A54: 5 | B54: Wajsarová Monika | C54: TJ Dynamo Liberec | D54: 376 | E54: 203 | F54: 1 | G54: 579
A55: 6 | B55: Pytlíková Denisa | C55: SKK Rokycany | D55: 418 | E55: 158 | F55: 7 | G55: 576
A56: 7 | B56: Lidman Linda | C56: TJ Jiskra Hazlov | D56: 365 | E56: 205 | F56: 2 | G56: 570
A57: 8 | B57: Portyšová Nikola | C57: SKK Jičín | D57: 379 | E57: 188 | F57: 3 | G57: 567
A58: 9 | B58: Utíkalová Karoline | C58: TJ Jiskra Hazlov | D58: 367 | E58: 186 | F58: 3 | G58: 553
A59: 10 | B59: Kubáčková Eliška | C59: TJ Sokol Husovice | D59: 381 | E59: 171 | F59: 6 | G59: 552
A60: 11 | B60: Zajacová Michaela | C60: KK Blansko | D60: 383 | E60: 166 | F60: 10 | G60: 549
A61: 12 | B61: Šimková Jitka | C61: SK Podlužan Prušánky | D61: 371 | E61: 175 | F61: 6 | G61: 546
A62: 13 | B62: Vrecková Hana | C62: TJ Jiskra Nová Bystřice | D62: 381 | E62: 163 | F62: 8 | G62: 544
A63: 14 | B63: Štursová Tereza | C63: TJ Lomnice | D63: 363 | E63: 175 | F63: 5 | G63: 538
A64: 15 | B64: Beranová Hana | C64: SK Baník Ratíškovice | D64: 351 | E64: 182 | F64: 7 | G64: 533
A65: 16 | B65: Maněnová Monika | C65: TJ Šabina | D65: 358 | E65: 173 | F65: 9 | G65: 531
A66: 17 | B66: Janyšková Barbora | C66: TJ Sokol Sedlnice | D66: 350 | E66: 175 | F66: 4 | G66: 525
A67: 18 | B67: Vašáková Barbora | C67: TJ Loko Ústí nad Labem | D67: 351 | E67: 172 | F67: 6 | G67: 523
A68: 19 | B68: Betuštiaková Stanislava | C68: Sokol Nové Hrady | D68: 364 | E68: 158 | F68: 16 | G68: 522
A69: 20 | B69: Běhounová Michaela | C69: TJ Jiskra Nová Bystřice | D69: 352 | E69: 169 | F69: 6 | G69: 521
A70: 21 | B70: Niklová Monika | C70: TJ Sokol Vracov | D70: 360 | E70: 161 | F70: 5 | G70: 521
A71: 22 | B71: Miláčková Klára | C71: TJ Spartak Kutná Hora | D71: 350 | E71: 167 | F71: 11 | G71: 517
A72: 23 | B72: Zimáková Kristýna | C72: KC Zlín | D72: 370 | E72: 144 | F72: 11 | G72: 514
A73: 24 | B73: Žáčková Michaela | C73: KK PSJ Jihlava | D73: 341 | E73: 163 | F73: 6 | G73: 504

Sheet Zadání
A1: =Výstup!A2 -> Juniorky
A2: Kvalifikace
A3: Č | B3: Jméno | C3: Oddíl | D3: Pl | E3: Do | F3: Ch | G3: Cel | H3: Pl | I3: Do | J3: Ch | K3: Cel
A4: 1 | B4: ='Prezence a los'!B2 -> Buďová Tereza | C4: ='Prezence a los'!C2 -> TJ Nové Město na Moravě | D4: 84 | E4: 36 | F4: 4 | G4: =D4+E4 -> 120 | H4: =SUM(D4:D7) -> 349 | I4: =SUM(E4:E7) -> 170 | J4: =SUM(F4:F7) -> 7 | K4: =SUM(G4:G7) -> 519 | M4: =B4 -> Buďová Tereza | N4: =C4 -> TJ Nové Město na Moravě | O4: =H4 -> 349 | P4: =I4 -> 170 | Q4: =J4 -> 7 | R4: =K4 -> 519 | T4: =G4+G5 -> 255
D5: 90 | E5: 45 | F5: 0 | G5: 135
D6: 88 | E6: 36 | F6: 1 | G6: 124 | K6: 1-2-4-3 | T6: 264
D7: 87 | E7: 53 | F7: 2 | G7: 140
A8: 2 | B8: ='Prezence a los'!B3 -> Betuštiaková Stanislava | C8: ='Prezence a los'!C3 -> Sokol Nové Hrady | D8: 85 | E8: 51 | F8: 2 | G8: 136 | H8: =SUM(D8:D11) -> 356 | I8: =SUM(E8:E11) -> 174 | J8: =SUM(F8:F11) -> 9 | K8: =SUM(G8:G11) -> 530 | M8: =B8 -> Betuštiaková Stanislava | N8: =C8 -> Sokol Nové Hrady | O8: =H8 -> 356 | P8: =I8 -> 174 | Q8: =J8 -> 9 | R8: =K8 -> 530 | T8: 263
D9: 85 | E9: 42 | F9: 2 | G9: 127
D10: 101 | E10: 45 | F10: 2 | G10: 146 | K10: 2-1-3-4 | T10: 267
D11: 85 | E11: 36 | F11: 3 | G11: 121
A12: 3 | B12: ='Prezence a los'!B4 -> Kubáčková Eliška | C12: ='Prezence a los'!C4 -> TJ Sokol Husovice | D12: 99 | E12: 45 | F12: 0 | G12: 144 | H12: =SUM(D12:D15) -> 374 | I12: =SUM(E12:E15) -> 172 | J12: =SUM(F12:F15) -> 4 | K12: =SUM(G12:G15) -> 546 | M12: =B12 -> Kubáčková Eliška | N12: =C12 -> TJ Sokol Husovice | O12: =H12 -> 374 | P12: =I12 -> 172 | Q12: =J12 -> 4 | R12: =K12 -> 546 | T12: 272
D13: 87 | E13: 41 | F13: 3 | G13: =D13+E13 -> 128
D14: 98 | E14: 44 | F14: 1 | G14: 142 | K14: 3-4-2-1 | T14: 274
D15: 90 | E15: 42 | F15: 0 | G15: 132
A16: 4 | B16: ='Prezence a los'!B5 -> Beranová Hana | C16: ='Prezence a los'!C5 -> SK Baník Ratíškovice | D16: 82 | E16: 45 | F16: 1 | G16: 127 | H16: =SUM(D16:D19) -> 353 | I16: =SUM(E16:E19) -> 185 | J16: =SUM(F16:F19) -> 4 | K16: =SUM(G16:G19) -> 538 | M16: =B16 -> Beranová Hana | N16: =C16 -> SK Baník Ratíškovice | O16: =H16 -> 353 | P16: =I16 -> 185 | Q16: =J16 -> 4 | R16: =K16 -> 538 | T16: 255
D17: 89 | E17: 39 | F17: 1 | G17: 128
D18: 92 | E18: 42 | F18: 2 | G18: 134 | K18: 4-3-1-2 | T18: 283
D19: 90 | E19: 59 | F19: 0 | G19: 149
A20: 5 | B20: ='Prezence a los'!B6 -> Betuštiaková Natálie | C20: ='Prezence a los'!C6 -> Sokol Nové Hrady | D20: 88 | E20: 25 | F20: 4 | G20: 113 | H20: =SUM(D20:D23) -> 341 | I20: =SUM(E20:E23) -> 117 | J20: =SUM(F20:F23) -> 14 | K20: =SUM(G20:G23) -> 458 | M20: =B20 -> Betuštiaková Natálie | N20: =C20 -> Sokol Nové Hrady | O20: =H20 -> 341 | P20: =I20 -> 117 | Q20: =J20 -> 14 | R20: =K20 -> 458 | T20: 214
D21: 84 | E21: 17 | F21: 5 | G21: =D21+E21 -> 101
D22: 87 | E22: 43 | F22: 1 | G22: 130 | K22: 1-2-4-3 | T22: 244
D23: 82 | E23: 32 | F23: 4 | G23: 114
A24: 6 | B24: ='Prezence a los'!B7 -> Kusiová Aneta | C24: ='Prezence a los'!C7 -> KK Slavoj Žirovnice | D24: 98 | E24: 26 | F24: 4 | G24: 124 | H24: =SUM(D24:D27) -> 358 | I24: =SUM(E24:E27) -> 154 | J24: =SUM(F24:F27) -> 8 | K24: =SUM(G24:G27) -> 512 | M24: =B24 -> Kusiová Aneta | N24: =C24 -> KK Slavoj Žirovnice | O24: =H24 -> 358 | P24: =I24 -> 154 | Q24: =J24 -> 8 | R24: =K24 -> 512 | T24: 238
D25: 79 | E25: 35 | F25: 3 | G25: 114
D26: 91 | E26: 40 | F26: 1 | G26: 131 | K26: 2-1-3-4 | T26: 274
D27: 90 | E27: 53 | F27: 0 | G27: 143
A28: 7 | B28: ='Prezence a los'!B8 -> Šimková Jitka | C28: ='Prezence a los'!C8 -> SK Podlužan Prušánky | D28: 88 | E28: 54 | F28: 0 | G28: 142 | H28: =SUM(D28:D31) -> 345 | I28: =SUM(E28:E31) -> 194 | J28: =SUM(F28:F31) -> 4 | K28: =SUM(G28:G31) -> 539 | M28: =B28 -> Šimková Jitka | N28: =C28 -> SK Podlužan Prušánky | O28: =H28 -> 345 | P28: =I28 -> 194 | Q28: =J28 -> 4 | R28: =K28 -> 539 | T28: 254
D29: 77 | E29: 35 | F29: 3 | G29: 112
D30: 93 | E30: 54 | F30: 0 | G30: 147 | K30: 3-4-2-1 | T30: 285
D31: 87 | E31: 51 | F31: 1 | G31: 138
A32: 8 | B32: ='Prezence a los'!B9 -> Niklová Monika | C32: ='Prezence a los'!C9 -> TJ Sokol Vracov | D32: 98 | E32: 32 | F32: 1 | G32: 130 | H32: =SUM(D32:D35) -> 367 | I32: =SUM(E32:E35) -> 194 | J32: =SUM(F32:F35) -> 3 | K32: =SUM(G32:G35) -> 561 | M32: =B32 -> Niklová Monika | N32: =C32 -> TJ Sokol Vracov | O32: =H32 -> 367 | P32: =I32 -> 194 | Q32: =J32 -> 3 | R32: =K32 -> 561 | T32: 283
D33: 104 | E33: 49 | F33: 2 | G33: 153
D34: 83 | E34: 53 | F34: 0 | G34: 136 | K34: 4-3-1-2 | T34: 278
D35: 82 | E35: 60 | F35: 0 | G35: 142
A36: 9 | B36: ='Prezence a los'!B10 -> Zajacová Michaela | C36: ='Prezence a los'!C10 -> KK Blansko | D36: 86 | E36: 50 | F36: 2 | G36: 136 | H36: =SUM(D36:D39) -> 357 | I36: =SUM(E36:E39) -> 173 | J36: =SUM(F36:F39) -> 7 | K36: =SUM(G36:G39) -> 530 | M36: =B36 -> Zajacová Michaela | N36: =C36 -> KK Blansko | O36: =H36 -> 357 | P36: =I36 -> 173 | Q36: =J36 -> 7 | R36: =K36 -> 530 | T36: 260
D37: 89 | E37: 35 | F37: 2 | G37: 124
D38: 104 | E38: 44 | F38: 1 | G38: 148 | K38: 1-2-4-3 | T38: 270
D39: 78 | E39: 44 | F39: 2 | G39: 122
A40: 10 | B40: ='Prezence a los'!B11 -> Dinnebierová Ilona | C40: ='Prezence a los'!C11 -> TJ Start Jihlava | D40: 71 | E40: 34 | F40: 2 | G40: 105 | H40: =SUM(D40:D43) -> 315 | I40: =SUM(E40:E43) -> 128 | J40: =SUM(F40:F43) -> 13 | K40: =SUM(G40:G43) -> 443 | M40: =B40 -> Dinnebierová Ilona | N40: =C40 -> TJ Start Jihlava | O40: =H40 -> 315 | P40: =I40 -> 128 | Q40: =J40 -> 13 | R40: =K40 -> 443 | T40: 235
D41: 88 | E41: 42 | F41: 2 | G41: 130
D42: 80 | E42: 35 | F42: 2 | G42: 115 | K42: 2-1-3-4 | T42: 208
D43: 76 | E43: 17 | F43: 7 | G43: 93
A44: 11 | B44: ='Prezence a los'!B12 -> Topičová Natálie | C44: ='Prezence a los'!C12 -> KK Slovan Rosice | D44: 106 | E44: 63 | F44: 0 | G44: =D44+E44 -> 169 | H44: =SUM(D44:D47) -> 406 | I44: =SUM(E44:E47) -> 204 | J44: =SUM(F44:F47) -> 2 | K44: =SUM(G44:G47) -> 610 | M44: =B44 -> Topičová Natálie | N44: =C44 -> KK Slovan Rosice | O44: =H44 -> 406 | P44: =I44 -> 204 | Q44: =J44 -> 2 | R44: =K44 -> 610 | T44: 303
D45: 89 | E45: 45 | F45: 1 | G45: =D45+E45 -> 134
D46: 106 | E46: 51 | F46: 1 | G46: =D46+E46 -> 157 | K46: 3-4-2-1 | T46: 307
D47: 105 | E47: 45 | F47: 0 | G47: =D47+E47 -> 150
A48: 12 | B48: ='Prezence a los'!B13 -> Presová Veronika | C48: ='Prezence a los'!C13 -> TJ Sokol Vracov | D48: 80 | E48: 36 | F48: 1 | G48: =D48+E48 -> 116 | H48: =SUM(D48:D51) -> 342 | I48: =SUM(E48:E51) -> 165 | J48: =SUM(F48:F51) -> 4 | K48: =SUM(G48:G51) -> 507 | M48: =B48 -> Presová Veronika | N48: =C48 -> TJ Sokol Vracov | O48: =H48 -> 342 | P48: =I48 -> 165 | Q48: =J48 -> 4 | R48: =K48 -> 507 | T48: 247
D49: 90 | E49: 41 | F49: 0 | G49: =D49+E49 -> 131
D50: 82 | E50: 36 | F50: 1 | G50: 118 | K50: 4-3-1-2 | T50: 260
D51: 90 | E51: 52 | F51: 2 | G51: 142
A52: 13 | B52: ='Prezence a los'!B14 -> Fejfarová Martina | C52: ='Prezence a los'!C14 -> SKK Vrchlabí | D52: 74 | E52: 53 | F52: 3 | G52: 127 | H52: =SUM(D52:D55) -> 322 | I52: =SUM(E52:E55) -> 151 | J52: =SUM(F52:F55) -> 14 | K52: =SUM(G52:G55) -> 473 | M52: =B52 -> Fejfarová Martina | N52: =C52 -> SKK Vrchlabí | O52: =H52 -> 322 | P52: =I52 -> 151 | Q52: =J52 -> 14 | R52: =K52 -> 473 | T52: 253
D53: 95 | E53: 31 | F53: 5 | G53: 126
D54: 74 | E54: 34 | F54: 3 | G54: 108 | K54: 1-2-4-3 | T54: 220
D55: 79 | E55: 33 | F55: 3 | G55: 112
A56: 14 | B56: ='Prezence a los'!B15 -> Mašlaňová Anna | C56: ='Prezence a los'!C15 -> TJ Kelč | D56: 92 | E56: 36 | F56: 4 | G56: 128 | H56: =SUM(D56:D59) -> 353 | I56: =SUM(E56:E59) -> 187 | J56: =SUM(F56:F59) -> 4 | K56: =SUM(G56:G59) -> 540 | M56: =B56 -> Mašlaňová Anna | N56: =C56 -> TJ Kelč | O56: =H56 -> 353 | P56: =I56 -> 187 | Q56: =J56 -> 4 | R56: =K56 -> 540 | T56: 263
D57: 90 | E57: 45 | F57: 0 | G57: 135
D58: 78 | E58: 53 | F58: 0 | G58: 131 | K58: 2-1-3-4 | T58: 277
D59: 93 | E59: 53 | F59: 0 | G59: 146
A60: 15 | B60: ='Prezence a los'!B16 -> Běhounová Michaela | C60: ='Prezence a los'!C16 -> TJ Jiskra Nová Bystřice | D60: 107 | E60: 43 | F60: 1 | G60: 150 | H60: =SUM(D60:D63) -> 365 | I60: =SUM(E60:E63) -> 180 | J60: =SUM(F60:F63) -> 3 | K60: =SUM(G60:G63) -> 545 | M60: =B60 -> Běhounová Michaela | N60: =C60 -> TJ Jiskra Nová Bystřice | O60: =H60 -> 365 | P60: =I60 -> 180 | Q60: =J60 -> 3 | R60: =K60 -> 545 | T60: 269
D61: 74 | E61: 45 | F61: 1 | G61: 119
D62: 95 | E62: 50 | F62: 1 | G62: 145 | K62: 3-4-2-1 | T62: 276
D63: 89 | E63: 42 | F63: 0 | G63: 131
A64: 16 | B64: ='Prezence a los'!B17 -> Žáčková Michaela | C64: ='Prezence a los'!C17 -> KK PSJ Jihlava | D64: 97 | E64: 45 | F64: 1 | G64: 142 | H64: =SUM(D64:D67) -> 355 | I64: =SUM(E64:E67) -> 171 | J64: =SUM(F64:F67) -> 7 | K64: =SUM(G64:G67) -> 526 | M64: =B64 -> Žáčková Michaela | N64: =C64 -> KK PSJ Jihlava | O64: =H64 -> 355 | P64: =I64 -> 171 | Q64: =J64 -> 7 | R64: =K64 -> 526 | T64: 286
D65: 85 | E65: 59 | F65: 2 | G65: 144
D66: 91 | E66: 40 | F66: 1 | G66: 131 | K66: 4-3-1-2 | T66: 240
D67: 82 | E67: 27 | F67: 3 | G67: 109
A68: 17 | B68: ='Prezence a los'!B18 -> Pavelková Monika | C68: ='Prezence a los'!C18 -> TJ Spartak Přerov | D68: 88 | E68: 44 | F68: 2 | G68: 132 | H68: =SUM(D68:D71) -> 357 | I68: =SUM(E68:E71) -> 174 | J68: =SUM(F68:F71) -> 6 | K68: =SUM(G68:G71) -> 531 | M68: =B68 -> Pavelková Monika | N68: =C68 -> TJ Spartak Přerov | O68: =H68 -> 357 | P68: =I68 -> 174 | Q68: =J68 -> 6 | R68: =K68 -> 531 | T68: =G68+G69 -> 263
D69: 96 | E69: 35 | F69: 2 | G69: 131
D70: 87 | E70: 50 | F70: 0 | G70: 137 | K70: 1-2-4-3 | T70: 268
D71: 86 | E71: 45 | F71: 2 | G71: 131
A72: 18 | B72: ='Prezence a los'!B19 -> Vrecková Hana | C72: ='Prezence a los'!C19 -> TJ Jiskra Nová Bystřice | D72: 91 | E72: 53 | F72: 2 | G72: 144 | H72: =SUM(D72:D75) -> 366 | I72: =SUM(E72:E75) -> 166 | J72: =SUM(F72:F75) -> 12 | K72: =SUM(G72:G75) -> 532 | M72: =B72 -> Vrecková Hana | N72: =C72 -> TJ Jiskra Nová Bystřice | O72: =H72 -> 366 | P72: =I72 -> 166 | Q72: =J72 -> 12 | R72: =K72 -> 532 | T72: 265
D73: 78 | E73: 43 | F73: 6 | G73: 121
D74: 99 | E74: 36 | F74: 2 | G74: 135 | K74: 2-1-3-4 | T74: 267
D75: 98 | E75: 34 | F75: 2 | G75: 132
A76: 19 | B76: ='Prezence a los'!B20 -> Nálevková Denisa | C76: ='Prezence a los'!C20 -> SKK Hořice | D76: 89 | E76: 45 | F76: 2 | G76: 134 | H76: =SUM(D76:D79) -> 341 | I76: =SUM(E76:E79) -> 159 | J76: =SUM(F76:F79) -> 7 | K76: =SUM(G76:G79) -> 500 | M76: =B76 -> Nálevková Denisa | N76: =C76 -> SKK Hořice | O76: =H76 -> 341 | P76: =I76 -> 159 | Q76: =J76 -> 7 | R76: =K76 -> 500 | T76: 260
D77: 90 | E77: 36 | F77: 5 | G77: 126
D78: 88 | E78: 39 | F78: 0 | G78: 127 | K78: 3-4-2-1 | T78: 240
D79: 74 | E79: 39 | F79: 0 | G79: 113
A80: 20 | B80: ='Prezence a los'!B21 -> Šustková Petra | C80: ='Prezence a los'!C21 -> KC Zlín | D80: 67 | E80: 44 | F80: 0 | G80: 111 | H80: =SUM(D80:D83) -> 339 | I80: =SUM(E80:E83) -> 149 | J80: =SUM(F80:F83) -> 5 | K80: =SUM(G80:G83) -> 488 | M80: =B80 -> Šustková Petra | N80: =C80 -> KC Zlín | O80: =H80 -> 339 | P80: =I80 -> 149 | Q80: =J80 -> 5 | R80: =K80 -> 488 | T80: 213
D81: 84 | E81: 18 | F81: 5 | G81: 102
D82: 91 | E82: 43 | F82: 0 | G82: 134 | K82: 4-3-1-2 | T82: 275
D83: 97 | E83: 44 | F83: 0 | G83: 141
A84: 21 | B84: ='Prezence a los'!B22 -> Portyšová Nikola | C84: ='Prezence a los'!C22 -> SKK Jičín | D84: 103 | E84: 62 | F84: 1 | G84: =D84+E84 -> 165 | H84: =SUM(D84:D87) -> 370 | I84: =SUM(E84:E87) -> 186 | J84: =SUM(F84:F87) -> 2 | K84: =SUM(G84:G87) -> 556 | M84: =B84 -> Portyšová Nikola | N84: =C84 -> SKK Jičín | O84: =H84 -> 370 | P84: =I84 -> 186 | Q84: =J84 -> 2 | R84: =K84 -> 556 | T84: 290
D85: 90 | E85: 35 | F85: 1 | G85: 125
D86: 95 | E86: 45 | F86: 0 | G86: 140 | K86: 1-2-4-3 | T86: 266
D87: 82 | E87: 44 | F87: 0 | G87: 126
A88: 22 | B88: ='Prezence a los'!B23 -> Miláčková Klára | C88: ='Prezence a los'!C23 -> TJ Spartak Kutná Hora | D88: 88 | E88: 60 | F88: 0 | G88: 148 | H88: =SUM(D88:D91) -> 349 | I88: =SUM(E88:E91) -> 176 | J88: =SUM(F88:F91) -> 6 | K88: =SUM(G88:G91) -> 525 | M88: =B88 -> Miláčková Klára | N88: =C88 -> TJ Spartak Kutná Hora | O88: =H88 -> 349 | P88: =I88 -> 176 | Q88: =J88 -> 6 | R88: =K88 -> 525 | T88: 251
D89: 85 | E89: 18 | F89: 4 | G89: 103
D90: 97 | E90: 45 | F90: 1 | G90: 142 | K90: 2-1-3-4 | T90: 274
D91: 79 | E91: 53 | F91: 1 | G91: 132
A92: 23 | B92: ='Prezence a los'!B24 -> Zimáková Kristýna | C92: ='Prezence a los'!C24 -> KC Zlín | D92: 105 | E92: 34 | F92: 3 | G92: 139 | H92: =SUM(D92:D95) -> 378 | I92: =SUM(E92:E95) -> 153 | J92: =SUM(F92:F95) -> 7 | K92: =SUM(G92:G95) -> 531 | M92: =B92 -> Zimáková Kristýna | N92: =C92 -> KC Zlín | O92: =H92 -> 378 | P92: =I92 -> 153 | Q92: =J92 -> 7 | R92: =K92 -> 531 | T92: 283
D93: 99 | E93: 45 | F93: 2 | G93: 144
D94: 85 | E94: 31 | F94: 2 | G94: 116 | K94: 3-4-2-1 | T94: 248
D95: 89 | E95: 43 | F95: 0 | G95: 132
A96: 24 | B96: ='Prezence a los'!B25 -> Janyšková Barbora | C96: ='Prezence a los'!C25 -> TJ Sokol Sedlnice | D96: 99 | E96: 36 | F96: 2 | G96: 135 | H96: =SUM(D96:D99) -> 387 | I96: =SUM(E96:E99) -> 180 | J96: =SUM(F96:F99) -> 3 | K96: =SUM(G96:G99) -> 567 | M96: =B96 -> Janyšková Barbora | N96: =C96 -> TJ Sokol Sedlnice | O96: =H96 -> 387 | P96: =I96 -> 180 | Q96: =J96 -> 3 | R96: =K96 -> 567 | T96: 275
D97: 95 | E97: 45 | F97: 0 | G97: 140
D98: 92 | E98: 54 | F98: 0 | G98: 146 | K98: 4-3-1-2 | T98: 292
D99: 101 | E99: 45 | F99: 1 | G99: 146
A100: 25 | B100: ='Prezence a los'!B26 -> Weissová Michaela | C100: ='Prezence a los'!C26 -> KK Jiří Poděbrady | D100: 91 | E100: 32 | F100: 2 | G100: 123 | H100: =SUM(D100:D103) -> 339 | I100: =SUM(E100:E103) -> 158 | J100: =SUM(F100:F103) -> 6 | K100: =SUM(G100:G103) -> 497 | M100: =B100 -> Weissová Michaela | N100: =C100 -> KK Jiří Poděbrady | O100: =H100 -> 339 | P100: =I100 -> 158 | Q100: =J100 -> 6 | R100: =K100 -> 497 | T100: =G100+G101 -> 255
D101: 84 | E101: 48 | F101: 0 | G101: 132
D102: 82 | E102: 34 | F102: 2 | G102: 116 | K102: 1-2-4-3 | T102: =G102+G103 -> 242
D103: 82 | E103: 44 | F103: 2 | G103: 126
A104: 26 | B104: ='Prezence a los'!B27 -> Vajdíková Lucie | C104: ='Prezence a los'!C27 -> TJ Lomnice | D104: 93 | E104: 36 | F104: 4 | G104: 129 | H104: =SUM(D104:D107) -> 356 | I104: =SUM(E104:E107) -> 141 | J104: =SUM(F104:F107) -> 12 | K104: =SUM(G104:G107) -> 497 | M104: =B104 -> Vajdíková Lucie | N104: =C104 -> TJ Lomnice | O104: =H104 -> 356 | P104: =I104 -> 141 | Q104: =J104 -> 12 | R104: =K104 -> 497 | T104: =G104+G105 -> 258
D105: 85 | E105: 44 | F105: 1 | G105: 129
D106: 91 | E106: 25 | F106: 4 | G106: 116 | K106: 2-1-3-4 | T106: =G106+G107 -> 239
D107: 87 | E107: 36 | F107: 3 | G107: 123
A108: 27 | B108: ='Prezence a los'!B28 -> Wajsarová Monika | C108: ='Prezence a los'!C28 -> TJ Dynamo Liberec | D108: 102 | E108: 36 | F108: 1 | G108: 138 | H108: =SUM(D108:D111) -> 353 | I108: =SUM(E108:E111) -> 177 | J108: =SUM(F108:F111) -> 1 | K108: =SUM(G108:G111) -> 530 | M108: =B108 -> Wajsarová Monika | N108: =C108 -> TJ Dynamo Liberec | O108: =H108 -> 353 | P108: =I108 -> 177 | Q108: =J108 -> 1 | R108: =K108 -> 530 | T108: =G108+G109 -> 260
D109: 78 | E109: 44 | F109: 0 | G109: 122
D110: 82 | E110: 45 | F110: 0 | G110: 127 | K110: 3-4-2-1 | T110: =G110+G111 -> 270
D111: 91 | E111: 52 | F111: 0 | G111: 143
A112: 28 | B112: ='Prezence a los'!B29 -> Doškářová Anna | C112: ='Prezence a los'!C29 -> KK Kosmonosy | D112: 83 | E112: 36 | F112: 3 | G112: 119 | H112: =SUM(D112:D115) -> 339 | I112: =SUM(E112:E115) -> 133 | J112: =SUM(F112:F115) -> 14 | K112: =SUM(G112:G115) -> 472 | M112: =B112 -> Doškářová Anna | N112: =C112 -> KK Kosmonosy | O112: =H112 -> 339 | P112: =I112 -> 133 | Q112: =J112 -> 14 | R112: =K112 -> 472 | T112: =G112+G113 -> 224
D113: 88 | E113: 17 | F113: 6 | G113: 105
D114: 88 | E114: 45 | F114: 1 | G114: 133 | K114: 4-3-1-2 | T114: =G114+G115 -> 248
D115: 80 | E115: 35 | F115: 4 | G115: 115
A116: 29 | B116: ='Prezence a los'!B30 -> Štursová Tereza | C116: ='Prezence a los'!C30 -> TJ Lomnice | D116: 85 | E116: 45 | F116: 1 | G116: 130 | H116: =SUM(D116:D119) -> 362 | I116: =SUM(E116:E119) -> 168 | J116: =SUM(F116:F119) -> 7 | K116: =SUM(G116:G119) -> 530 | M116: =B116 -> Štursová Tereza | N116: =C116 -> TJ Lomnice | O116: =H116 -> 362 | P116: =I116 -> 168 | Q116: =J116 -> 7 | R116: =K116 -> 530 | T116: =G116+G117 -> 257
D117: 88 | E117: 39 | F117: 2 | G117: 127
D118: 92 | E118: 34 | F118: 2 | G118: 126 | K118: 1-2-4-3 | T118: =G118+G119 -> 273
D119: 97 | E119: 50 | F119: 2 | G119: 147
A120: 30 | B120: ='Prezence a los'!B31 -> Rubášová Michaela | C120: ='Prezence a los'!C31 -> TJ Sokol Kdyně | D120: 95 | E120: 41 | F120: 3 | G120: 136 | H120: =SUM(D120:D123) -> 361 | I120: =SUM(E120:E123) -> 136 | J120: =SUM(F120:F123) -> 18 | K120: =SUM(G120:G123) -> 497 | M120: =B120 -> Rubášová Michaela | N120: =C120 -> TJ Sokol Kdyně | O120: =H120 -> 361 | P120: =I120 -> 136 | Q120: =J120 -> 18 | R120: =K120 -> 497 | T120: =G120+G121 -> 245
D121: 93 | E121: 16 | F121: 9 | G121: 109
D122: 83 | E122: 35 | F122: 3 | G122: 118 | K122: 2-1-3-4 | T122: =G122+G123 -> 252
D123: 90 | E123: 44 | F123: 3 | G123: 134
A124: 31 | B124: ='Prezence a los'!B32 -> Lidman Linda | C124: ='Prezence a los'!C32 -> TJ Jiskra Hazlov | D124: 101 | E124: 49 | F124: 0 | G124: 150 | H124: =SUM(D124:D127) -> 368 | I124: =SUM(E124:E127) -> 180 | J124: =SUM(F124:F127) -> 1 | K124: =SUM(G124:G127) -> 548 | M124: =B124 -> Lidman Linda | N124: =C124 -> TJ Jiskra Hazlov | O124: =H124 -> 368 | P124: =I124 -> 180 | Q124: =J124 -> 1 | R124: =K124 -> 548 | T124: =G124+G125 -> 284
D125: 80 | E125: 54 | F125: 0 | G125: 134
D126: 93 | E126: 43 | F126: 0 | G126: 136 | K126: 3-4-2-1 | T126: =G126+G127 -> 264
D127: 94 | E127: 34 | F127: 1 | G127: 128
A128: 32 | B128: ='Prezence a los'!B33 -> Schuldová Radka | C128: ='Prezence a los'!C33 -> Kuželky Holýšov | D128: 82 | E128: 36 | F128: 3 | G128: 118 | H128: =SUM(D128:D131) -> 317 | I128: =SUM(E128:E131) -> 130 | J128: =SUM(F128:F131) -> 15 | K128: =SUM(G128:G131) -> 447 | M128: =B128 -> Schuldová Radka | N128: =C128 -> Kuželky Holýšov | O128: =H128 -> 317 | P128: =I128 -> 130 | Q128: =J128 -> 15 | R128: =K128 -> 447 | T128: =G128+G129 -> 242
D129: 80 | E129: 44 | F129: 3 | G129: 124
D130: 79 | E130: 26 | F130: 4 | G130: 105 | K130: 4-3-1-2 | T130: =G130+G131 -> 205
D131: 76 | E131: 24 | F131: 5 | G131: 100
A132: 33 | B132: ='Prezence a los'!B34 -> Pytlíková Denisa | C132: ='Prezence a los'!C34 -> SKK Rokycany | D132: 94 | E132: 35 | F132: 2 | G132: 129 | H132: =SUM(D132:D135) -> 369 | I132: =SUM(E132:E135) -> 181 | J132: =SUM(F132:F135) -> 4 | K132: =SUM(G132:G135) -> 550 | M132: =B132 -> Pytlíková Denisa | N132: =C132 -> SKK Rokycany | O132: =H132 -> 369 | P132: =I132 -> 181 | Q132: =J132 -> 4 | R132: =K132 -> 550 | T132: =G132+G133 -> 278
D133: 98 | E133: 51 | F133: 0 | G133: 149
D134: 77 | E134: 50 | F134: 0 | G134: 127 | K134: 1-2-4-3 | T134: =G134+G135 -> 272
D135: 100 | E135: 45 | F135: 2 | G135: 145
A136: 34 | B136: ='Prezence a los'!B35 -> Maněnová Monika | C136: ='Prezence a los'!C35 -> TJ Šabina | D136: 98 | E136: 35 | F136: 1 | G136: 133 | H136: =SUM(D136:D139) -> 389 | I136: =SUM(E136:E139) -> 174 | J136: =SUM(F136:F139) -> 4 | K136: =SUM(G136:G139) -> 563 | M136: =B136 -> Maněnová Monika | N136: =C136 -> TJ Šabina | O136: =H136 -> 389 | P136: =I136 -> 174 | Q136: =J136 -> 4 | R136: =K136 -> 563 | T136: =G136+G137 -> 276
D137: 98 | E137: 45 | F137: 1 | G137: 143
D138: 97 | E138: 52 | F138: 1 | G138: 149 | K138: 2-1-3-4 | T138: =G138+G139 -> 287
D139: 96 | E139: 42 | F139: 1 | G139: 138
A140: 35 | B140: ='Prezence a los'!B36 -> Vašáková Barbora | C140: ='Prezence a los'!C36 -> TJ Loko Ústí nad Labem | D140: 92 | E140: 54 | F140: 1 | G140: =D140+E140 -> 146 | H140: =SUM(D140:D143) -> 378 | I140: =SUM(E140:E143) -> 180 | J140: =SUM(F140:F143) -> 5 | K140: =SUM(G140:G143) -> 558 | M140: =B140 -> Vašáková Barbora | N140: =C140 -> TJ Loko Ústí nad Labem | O140: =H140 -> 378 | P140: =I140 -> 180 | Q140: =J140 -> 5 | R140: =K140 -> 558 | T140: =G140+G141 -> 269
D141: 78 | E141: 45 | F141: 1 | G141: 123
D142: 100 | E142: 36 | F142: 2 | G142: 136 | K142: 3-4-2-1 | T142: =G142+G143 -> 289
D143: 108 | E143: 45 | F143: 1 | G143: 153
A144: 36 | B144: ='Prezence a los'!B37 -> Utíkalová Karoline | C144: ='Prezence a los'!C37 -> TJ Jiskra Hazlov | D144: 90 | E144: 44 | F144: 1 | G144: 134 | H144: =SUM(D144:D147) -> 361 | I144: =SUM(E144:E147) -> 163 | J144: =SUM(F144:F147) -> 8 | K144: =SUM(G144:G147) -> 524 | M144: =B144 -> Utíkalová Karoline | N144: =C144 -> TJ Jiskra Hazlov | O144: =H144 -> 361 | P144: =I144 -> 163 | Q144: =J144 -> 8 | R144: =K144 -> 524 | T144: =G144+G145 -> 273
D145: 96 | E145: 43 | F145: 2 | G145: 139
D146: 86 | E146: 50 | F146: 2 | G146: 136 | K146: 4-3-1-2 | T146: =G146+G147 -> 251
D147: 89 | E147: 26 | F147: 3 | G147: 115
A149: Finále
A150: 24 | B150: =Export!B85 -> Buďová Tereza | C150: =Export!C85 -> TJ Nové Město na Moravě | D150: 102 | E150: 70 | F150: 0 | G150: =D150+E150 -> 172 | H150: =SUM(D150:D153) -> 368 | I150: =SUM(E150:E153) -> 219 | J150: =SUM(F150:F153) -> 1 | K150: =SUM(G150:G153) -> 587 | L150: =K150+H152 -> 587 | M150: =B150 -> Buďová Tereza | N150: =C150 -> TJ Nové Město na Moravě | O150: =H150 -> 368 | P150: =I150 -> 219 | Q150: =J150 -> 1 | R150: =K150 -> 587 | T150: =G150+G151 -> 299
D151: 88 | E151: 39 | F151: 1 | G151: =D151+E151 -> 127
D152: 93 | E152: 62 | F152: 0 | G152: =D152+E152 -> 155 | K152: 1-2-4-3 | T152: =G152+G153 -> 288
D153: 85 | E153: 48 | F153: 0 | G153: =D153+E153 -> 133
A154: 23 | B154: =Export!B86 -> Utíkalová Karoline | C154: =Export!C86 -> TJ Jiskra Hazlov | D154: 93 | E154: 54 | F154: 1 | G154: =D154+E154 -> 147 | H154: =SUM(D154:D157) -> 367 | I154: =SUM(E154:E157) -> 186 | J154: =SUM(F154:F157) -> 3 | K154: =SUM(G154:G157) -> 553 | L154: =K154+H156 -> 553 | M154: =B154 -> Utíkalová Karoline | N154: =C154 -> TJ Jiskra Hazlov | O154: =H154 -> 367 | P154: =I154 -> 186 | Q154: =J154 -> 3 | R154: =K154 -> 553 | T154: =G154+G155 -> 285
D155: 102 | E155: 36 | F155: 2 | G155: =D155+E155 -> 138
D156: 89 | E156: 43 | F156: 0 | G156: 132 | K156: 2-1-3-4 | T156: =G156+G157 -> 268
D157: 83 | E157: 53 | F157: 0 | G157: 136
A158: 22 | B158: =Export!B87 -> Miláčková Klára | C158: =Export!C87 -> TJ Spartak Kutná Hora | D158: 89 | E158: 62 | F158: 0 | G158: 151 | H158: =SUM(D158:D161) -> 350 | I158: =SUM(E158:E161) -> 167 | J158: =SUM(F158:F161) -> 11 | K158: =SUM(G158:G161) -> 517 | L158: =K158+H160 -> 517 | M158: =B158 -> Miláčková Klára | N158: =C158 -> TJ Spartak Kutná Hora | O158: =H158 -> 350 | P158: =I158 -> 167 | Q158: =J158 -> 11 | R158: =K158 -> 517 | T158: =G158+G159 -> 265
D159: 79 | E159: 35 | F159: 2 | G159: 114
D160: 93 | E160: 35 | F160: 4 | G160: 128 | K160: 3-4-2-1 | T160: =G160+G161 -> 252
D161: 89 | E161: 35 | F161: 5 | G161: 124
A162: 21 | B162: =Export!B88 -> Žáčková Michaela | C162: =Export!C88 -> KK PSJ Jihlava | D162: 79 | E162: 33 | F162: 2 | G162: 112 | H162: =SUM(D162:D165) -> 341 | I162: =SUM(E162:E165) -> 163 | J162: =SUM(F162:F165) -> 6 | K162: =SUM(G162:G165) -> 504 | L162: =K162+H164 -> 504 | M162: =B162 -> Žáčková Michaela | N162: =C162 -> KK PSJ Jihlava | O162: =H162 -> 341 | P162: =I162 -> 163 | Q162: =J162 -> 6 | R162: =K162 -> 504 | T162: =G162+G163 -> 241
D163: 79 | E163: 50 | F163: 0 | G163: 129
D164: 87 | E164: 35 | F164: 3 | G164: 122 | K164: 4-3-1-2 | T164: =G164+G165 -> 263
D165: 96 | E165: 45 | F165: 1 | G165: 141
A166: 20 | B166: =Export!B89 -> Štursová Tereza | C166: =Export!C89 -> TJ Lomnice | D166: 74 | E166: 43 | F166: 1 | G166: =D166+E166 -> 117 | H166: =SUM(D166:D169) -> 363 | I166: =SUM(E166:E169) -> 175 | J166: =SUM(F166:F169) -> 5 | K166: =SUM(G166:G169) -> 538 | L166: =K166+H168 -> 538 | M166: =B166 -> Štursová Tereza | N166: =C166 -> TJ Lomnice | O166: =H166 -> 363 | P166: =I166 -> 175 | Q166: =J166 -> 5 | R166: =K166 -> 538 | T166: =G166+G167 -> 260
D167: 100 | E167: 43 | F167: 0 | G167: =D167+E167 -> 143
D168: 88 | E168: 45 | F168: 2 | G168: =D168+E168 -> 133 | K168: 1-2-4-3 | T168: 278
D169: 101 | E169: 44 | F169: 2 | G169: =D169+E169 -> 145
A170: 19 | B170: =Export!B90 -> Zajacová Michaela | C170: =Export!C90 -> KK Blansko | D170: 94 | E170: 43 | F170: 2 | G170: =D170+E170 -> 137 | H170: =SUM(D170:D173) -> 383 | I170: =SUM(E170:E173) -> 166 | J170: =SUM(F170:F173) -> 10 | K170: =SUM(G170:G173) -> 549 | L170: =K170+H172 -> 549 | M170: =B170 -> Zajacová Michaela | N170: =C170 -> KK Blansko | O170: =H170 -> 383 | P170: =I170 -> 166 | Q170: =J170 -> 10 | R170: =K170 -> 549 | T170: 287
D171: 99 | E171: 51 | F171: 3 | G171: =D171+E171 -> 150
D172: 98 | E172: 36 | F172: 3 | G172: 134 | K172: 2-1-3-4 | T172: 262
D173: 92 | E173: 36 | F173: 2 | G173: 128
A174: 18 | B174: =Export!B91 -> Betuštiaková Stanislava | C174: =Export!C91 -> Sokol Nové Hrady | D174: 98 | E174: 35 | F174: 2 | G174: 133 | H174: =SUM(D174:D177) -> 364 | I174: =SUM(E174:E177) -> 158 | J174: =SUM(F174:F177) -> 16 | K174: =SUM(G174:G177) -> 522 | L174: =K174+H176 -> 522 | M174: =B174 -> Betuštiaková Stanislava | N174: =C174 -> Sokol Nové Hrady | O174: =H174 -> 364 | P174: =I174 -> 158 | Q174: =J174 -> 16 | R174: =K174 -> 522 | T174: 274
D175: 87 | E175: 54 | F175: 3 | G175: 141
D176: 92 | E176: 35 | F176: 6 | G176: 127 | K176: 3-4-2-1 | T176: 248
D177: 87 | E177: 34 | F177: 5 | G177: 121
A178: 17 | B178: =Export!B92 -> Wajsarová Monika | C178: =Export!C92 -> TJ Dynamo Liberec | D178: 95 | E178: 52 | F178: 1 | G178: 147 | H178: =SUM(D178:D181) -> 376 | I178: =SUM(E178:E181) -> 203 | J178: =SUM(F178:F181) -> 1 | K178: =SUM(G178:G181) -> 579 | L178: =K178+H180 -> 579 | M178: =B178 -> Wajsarová Monika | N178: =C178 -> TJ Dynamo Liberec | O178: =H178 -> 376 | P178: =I178 -> 203 | Q178: =J178 -> 1 | R178: =K178 -> 579 | T178: 285
D179: 93 | E179: 45 | F179: 0 | G179: 138
D180: 96 | E180: 52 | F180: 0 | G180: 148 | K180: 4-3-1-2 | T180: 294
D181: 92 | E181: 54 | F181: 0 | G181: 146
A182: 16 | B182: =Export!B93 -> Zimáková Kristýna | C182: =Export!C93 -> KC Zlín | D182: 99 | E182: 32 | F182: 3 | G182: 131 | H182: =SUM(D182:D185) -> 370 | I182: =SUM(E182:E185) -> 144 | J182: =SUM(F182:F185) -> 11 | K182: =SUM(G182:G185) -> 514 | L182: =K182+H184 -> 514 | M182: =B182 -> Zimáková Kristýna | N182: =C182 -> KC Zlín | O182: =H182 -> 370 | P182: =I182 -> 144 | Q182: =J182 -> 11 | R182: =K182 -> 514 | T182: 252
D183: 94 | E183: 27 | F183: 4 | G183: 121
D184: 85 | E184: 52 | F184: 2 | G184: 137 | K184: 1-2-4-3 | T184: 262
D185: 92 | E185: 33 | F185: 2 | G185: 125
A186: 15 | B186: =Export!B94 -> Pavelková Monika | C186: =Export!C94 -> TJ Spartak Přerov | D186: 85 | E186: 48 | F186: 1 | G186: 133 | H186: =SUM(D186:D189) -> 374 | I186: =SUM(E186:E189) -> 205 | J186: =SUM(F186:F189) -> 5 | K186: =SUM(G186:G189) -> 579 | L186: =K186+H188 -> 579 | M186: =B186 -> Pavelková Monika | N186: =C186 -> TJ Spartak Přerov | O186: =H186 -> 374 | P186: =I186 -> 205 | Q186: =J186 -> 5 | R186: =K186 -> 579 | T186: 300
D187: 96 | E187: 71 | F187: 1 | G187: 167
D188: 93 | E188: 36 | F188: 3 | G188: 129 | K188: 2-1-3-4 | T188: 279
D189: 100 | E189: 50 | F189: 0 | G189: 150
A190: 14 | B190: =Export!B95 -> Vrecková Hana | C190: =Export!C95 -> TJ Jiskra Nová Bystřice | D190: 96 | E190: 41 | F190: 1 | G190: 137 | H190: =SUM(D190:D193) -> 381 | I190: =SUM(E190:E193) -> 163 | J190: =SUM(F190:F193) -> 8 | K190: =SUM(G190:G193) -> 544 | L190: =K190+H192 -> 544 | M190: =B190 -> Vrecková Hana | N190: =C190 -> TJ Jiskra Nová Bystřice | O190: =H190 -> 381 | P190: =I190 -> 163 | Q190: =J190 -> 8 | R190: =K190 -> 544 | T190: 259
D191: 89 | E191: 33 | F191: 4 | G191: 122
D192: 106 | E192: 44 | F192: 1 | G192: 150 | K192: 3-4-2-1 | T192: 285
D193: 90 | E193: 45 | F193: 2 | G193: 135
A194: 13 | B194: =Export!B96 -> Beranová Hana | C194: =Export!C96 -> SK Baník Ratíškovice | D194: 80 | E194: 35 | F194: 3 | G194: 115 | H194: =SUM(D194:D197) -> 351 | I194: =SUM(E194:E197) -> 182 | J194: =SUM(F194:F197) -> 7 | K194: =SUM(G194:G197) -> 533 | L194: =K194+H196 -> 533 | M194: =B194 -> Beranová Hana | N194: =C194 -> SK Baník Ratíškovice | O194: =H194 -> 351 | P194: =I194 -> 182 | Q194: =J194 -> 7 | R194: =K194 -> 533 | T194: 248
D195: 89 | E195: 44 | F195: 1 | G195: 133
D196: 95 | E196: 51 | F196: 1 | G196: 146 | K196: 4-3-1-2 | T196: 285
D197: 87 | E197: 52 | F197: 2 | G197: 139
A198: 12 | B198: =Export!B97 -> Šimková Jitka | C198: =Export!C97 -> SK Podlužan Prušánky | D198: 84 | E198: 61 | F198: 0 | G198: =D198+E198 -> 145 | H198: =SUM(D198:D201) -> 371 | I198: =SUM(E198:E201) -> 175 | J198: =SUM(F198:F201) -> 6 | K198: =SUM(G198:G201) -> 546 | L198: =K198+H200 -> 546 | M198: =B198 -> Šimková Jitka | N198: =C198 -> SK Podlužan Prušánky | O198: =H198 -> 371 | P198: =I198 -> 175 | Q198: =J198 -> 6 | R198: =K198 -> 546 | T198: =G198+G199 -> 278
D199: 97 | E199: 36 | F199: 0 | G199: =D199+E199 -> 133
D200: 102 | E200: 43 | F200: 3 | G200: =D200+E200 -> 145 | K200: 1-2-4-3 | T200: =G200+G201 -> 268
D201: 88 | E201: 35 | F201: 3 | G201: =D201+E201 -> 123
... 45 more rows

Sheet Export
A1: =Zadání!A1 -> Juniorky
A3: 1 | B3: =Zadání!M4 -> Buďová Tereza | C3: =Zadání!N4 -> TJ Nové Město na Moravě | D3: =Zadání!O4 -> 349 | E3: =Zadání!P4 -> 170 | F3: =Zadání!Q4 -> 7 | G3: =Zadání!R4 -> 519
A4: 2 | B4: =Zadání!M8 -> Betuštiaková Stanislava | C4: =Zadání!N8 -> Sokol Nové Hrady | D4: =Zadání!O8 -> 356 | E4: =Zadání!P8 -> 174 | F4: =Zadání!Q8 -> 9 | G4: =Zadání!R8 -> 530
A5: 3 | B5: =Zadání!M12 -> Kubáčková Eliška | C5: =Zadání!N12 -> TJ Sokol Husovice | D5: =Zadání!O12 -> 374 | E5: =Zadání!P12 -> 172 | F5: =Zadání!Q12 -> 4 | G5: =Zadání!R12 -> 546
A6: 4 | B6: =Zadání!M16 -> Beranová Hana | C6: =Zadání!N16 -> SK Baník Ratíškovice | D6: =Zadání!O16 -> 353 | E6: =Zadání!P16 -> 185 | F6: =Zadání!Q16 -> 4 | G6: =Zadání!R16 -> 538
A7: 5 | B7: =Zadání!M20 -> Betuštiaková Natálie | C7: =Zadání!N20 -> Sokol Nové Hrady | D7: =Zadání!O20 -> 341 | E7: =Zadání!P20 -> 117 | F7: =Zadání!Q20 -> 14 | G7: =Zadání!R20 -> 458
A8: 6 | B8: =Zadání!M24 -> Kusiová Aneta | C8: =Zadání!N24 -> KK Slavoj Žirovnice | D8: =Zadání!O24 -> 358 | E8: =Zadání!P24 -> 154 | F8: =Zadání!Q24 -> 8 | G8: =Zadání!R24 -> 512
A9: 7 | B9: =Zadání!M28 -> Šimková Jitka | C9: =Zadání!N28 -> SK Podlužan Prušánky | D9: =Zadání!O28 -> 345 | E9: =Zadání!P28 -> 194 | F9: =Zadání!Q28 -> 4 | G9: =Zadání!R28 -> 539
A10: 8 | B10: =Zadání!M32 -> Niklová Monika | C10: =Zadání!N32 -> TJ Sokol Vracov | D10: =Zadání!O32 -> 367 | E10: =Zadání!P32 -> 194 | F10: =Zadání!Q32 -> 3 | G10: =Zadání!R32 -> 561
A11: 9 | B11: =Zadání!M36 -> Zajacová Michaela | C11: =Zadání!N36 -> KK Blansko | D11: =Zadání!O36 -> 357 | E11: =Zadání!P36 -> 173 | F11: =Zadání!Q36 -> 7 | G11: =Zadání!R36 -> 530
A12: 10 | B12: =Zadání!M40 -> Dinnebierová Ilona | C12: =Zadání!N40 -> TJ Start Jihlava | D12: =Zadání!O40 -> 315 | E12: =Zadání!P40 -> 128 | F12: =Zadání!Q40 -> 13 | G12: =Zadání!R40 -> 443
A13: 11 | B13: =Zadání!M44 -> Topičová Natálie | C13: =Zadání!N44 -> KK Slovan Rosice | D13: =Zadání!O44 -> 406 | E13: =Zadání!P44 -> 204 | F13: =Zadání!Q44 -> 2 | G13: =Zadání!R44 -> 610
A14: 12 | B14: =Zadání!M48 -> Presová Veronika | C14: =Zadání!N48 -> TJ Sokol Vracov | D14: =Zadání!O48 -> 342 | E14: =Zadání!P48 -> 165 | F14: =Zadání!Q48 -> 4 | G14: =Zadání!R48 -> 507
A15: 13 | B15: =Zadání!M52 -> Fejfarová Martina | C15: =Zadání!N52 -> SKK Vrchlabí | D15: =Zadání!O52 -> 322 | E15: =Zadání!P52 -> 151 | F15: =Zadání!Q52 -> 14 | G15: =Zadání!R52 -> 473
A16: 14 | B16: =Zadání!M56 -> Mašlaňová Anna | C16: =Zadání!N56 -> TJ Kelč | D16: =Zadání!O56 -> 353 | E16: =Zadání!P56 -> 187 | F16: =Zadání!Q56 -> 4 | G16: =Zadání!R56 -> 540
A17: 15 | B17: =Zadání!M60 -> Běhounová Michaela | C17: =Zadání!N60 -> TJ Jiskra Nová Bystřice | D17: =Zadání!O60 -> 365 | E17: =Zadání!P60 -> 180 | F17: =Zadání!Q60 -> 3 | G17: =Zadání!R60 -> 545
A18: 16 | B18: =Zadání!M64 -> Žáčková Michaela | C18: =Zadání!N64 -> KK PSJ Jihlava | D18: =Zadání!O64 -> 355 | E18: =Zadání!P64 -> 171 | F18: =Zadání!Q64 -> 7 | G18: =Zadání!R64 -> 526
A19: 17 | B19: =Zadání!M68 -> Pavelková Monika | C19: =Zadání!N68 -> TJ Spartak Přerov | D19: =Zadání!O68 -> 357 | E19: =Zadání!P68 -> 174 | F19: =Zadání!Q68 -> 6 | G19: =Zadání!R68 -> 531
A20: 18 | B20: =Zadání!M72 -> Vrecková Hana | C20: =Zadání!N72 -> TJ Jiskra Nová Bystřice | D20: =Zadání!O72 -> 366 | E20: =Zadání!P72 -> 166 | F20: =Zadání!Q72 -> 12 | G20: =Zadání!R72 -> 532
A21: 19 | B21: =Zadání!M76 -> Nálevková Denisa | C21: =Zadání!N76 -> SKK Hořice | D21: =Zadání!O76 -> 341 | E21: =Zadání!P76 -> 159 | F21: =Zadání!Q76 -> 7 | G21: =Zadání!R76 -> 500
A22: 20 | B22: =Zadání!M80 -> Šustková Petra | C22: =Zadání!N80 -> KC Zlín | D22: =Zadání!O80 -> 339 | E22: =Zadání!P80 -> 149 | F22: =Zadání!Q80 -> 5 | G22: =Zadání!R80 -> 488
A23: 21 | B23: =Zadání!M84 -> Portyšová Nikola | C23: =Zadání!N84 -> SKK Jičín | D23: =Zadání!O84 -> 370 | E23: =Zadání!P84 -> 186 | F23: =Zadání!Q84 -> 2 | G23: =Zadání!R84 -> 556
A24: 22 | B24: =Zadání!M88 -> Miláčková Klára | C24: =Zadání!N88 -> TJ Spartak Kutná Hora | D24: =Zadání!O88 -> 349 | E24: =Zadání!P88 -> 176 | F24: =Zadání!Q88 -> 6 | G24: =Zadání!R88 -> 525
A25: 23 | B25: =Zadání!M92 -> Zimáková Kristýna | C25: =Zadání!N92 -> KC Zlín | D25: =Zadání!O92 -> 378 | E25: =Zadání!P92 -> 153 | F25: =Zadání!Q92 -> 7 | G25: =Zadání!R92 -> 531
A26: 24 | B26: =Zadání!M96 -> Janyšková Barbora | C26: =Zadání!N96 -> TJ Sokol Sedlnice | D26: =Zadání!O96 -> 387 | E26: =Zadání!P96 -> 180 | F26: =Zadání!Q96 -> 3 | G26: =Zadání!R96 -> 567
A27: 25 | B27: =Zadání!M100 -> Weissová Michaela | C27: =Zadání!N100 -> KK Jiří Poděbrady | D27: =Zadání!O100 -> 339 | E27: =Zadání!P100 -> 158 | F27: =Zadání!Q100 -> 6 | G27: =Zadání!R100 -> 497
A28: 26 | B28: =Zadání!M104 -> Vajdíková Lucie | C28: =Zadání!N104 -> TJ Lomnice | D28: =Zadání!O104 -> 356 | E28: =Zadání!P104 -> 141 | F28: =Zadání!Q104 -> 12 | G28: =Zadání!R104 -> 497
A29: 27 | B29: =Zadání!M108 -> Wajsarová Monika | C29: =Zadání!N108 -> TJ Dynamo Liberec | D29: =Zadání!O108 -> 353 | E29: =Zadání!P108 -> 177 | F29: =Zadání!Q108 -> 1 | G29: =Zadání!R108 -> 530
A30: 28 | B30: =Zadání!M112 -> Doškářová Anna | C30: =Zadání!N112 -> KK Kosmonosy | D30: =Zadání!O112 -> 339 | E30: =Zadání!P112 -> 133 | F30: =Zadání!Q112 -> 14 | G30: =Zadání!R112 -> 472
A31: 29 | B31: =Zadání!M116 -> Štursová Tereza | C31: =Zadání!N116 -> TJ Lomnice | D31: =Zadání!O116 -> 362 | E31: =Zadání!P116 -> 168 | F31: =Zadání!Q116 -> 7 | G31: =Zadání!R116 -> 530
A32: 30 | B32: =Zadání!M120 -> Rubášová Michaela | C32: =Zadání!N120 -> TJ Sokol Kdyně | D32: =Zadání!O120 -> 361 | E32: =Zadání!P120 -> 136 | F32: =Zadání!Q120 -> 18 | G32: =Zadání!R120 -> 497
A33: 31 | B33: =Zadání!M124 -> Lidman Linda | C33: =Zadání!N124 -> TJ Jiskra Hazlov | D33: =Zadání!O124 -> 368 | E33: =Zadání!P124 -> 180 | F33: =Zadání!Q124 -> 1 | G33: =Zadání!R124 -> 548
A34: 32 | B34: =Zadání!M128 -> Schuldová Radka | C34: =Zadání!N128 -> Kuželky Holýšov | D34: =Zadání!O128 -> 317 | E34: =Zadání!P128 -> 130 | F34: =Zadání!Q128 -> 15 | G34: =Zadání!R128 -> 447
A35: 33 | B35: =Zadání!M132 -> Pytlíková Denisa | C35: =Zadání!N132 -> SKK Rokycany | D35: =Zadání!O132 -> 369 | E35: =Zadání!P132 -> 181 | F35: =Zadání!Q132 -> 4 | G35: =Zadání!R132 -> 550
A36: 34 | B36: =Zadání!M136 -> Maněnová Monika | C36: =Zadání!N136 -> TJ Šabina | D36: =Zadání!O136 -> 389 | E36: =Zadání!P136 -> 174 | F36: =Zadání!Q136 -> 4 | G36: =Zadání!R136 -> 563
A37: 35 | B37: =Zadání!M140 -> Vašáková Barbora | C37: =Zadání!N140 -> TJ Loko Ústí nad Labem | D37: =Zadání!O140 -> 378 | E37: =Zadání!P140 -> 180 | F37: =Zadání!Q140 -> 5 | G37: =Zadání!R140 -> 558
A38: 36 | B38: =Zadání!M144 -> Utíkalová Karoline | C38: =Zadání!N144 -> TJ Jiskra Hazlov | D38: =Zadání!O144 -> 361 | E38: =Zadání!P144 -> 163 | F38: =Zadání!Q144 -> 8 | G38: =Zadání!R144 -> 524
A41: 1 | B41: =Zadání!M242 -> Topičová Natálie | C41: =Zadání!N242 -> KK Slovan Rosice | D41: =Zadání!O242 -> 395 | E41: =Zadání!P242 -> 227 | F41: =Zadání!Q242 -> 1 | G41: =Zadání!R242 -> 622
A42: 2 | B42: =Zadání!M238 -> Janyšková Barbora | C42: =Zadání!N238 -> TJ Sokol Sedlnice | D42: =Zadání!O238 -> 350 | E42: =Zadání!P238 -> 175 | F42: =Zadání!Q238 -> 4 | G42: =Zadání!R238 -> 525
A43: 3 | B43: =Zadání!M234 -> Maněnová Monika | C43: =Zadání!N234 -> TJ Šabina | D43: =Zadání!O234 -> 358 | E43: =Zadání!P234 -> 173 | F43: =Zadání!Q234 -> 9 | G43: =Zadání!R234 -> 531
A44: 4 | B44: =Zadání!M230 -> Niklová Monika | C44: =Zadání!N230 -> TJ Sokol Vracov | D44: =Zadání!O230 -> 360 | E44: =Zadání!P230 -> 161 | F44: =Zadání!Q230 -> 5 | G44: =Zadání!R230 -> 521
A45: 5 | B45: =Zadání!M226 -> Vašáková Barbora | C45: =Zadání!N226 -> TJ Loko Ústí nad Labem | D45: =Zadání!O226 -> 351 | E45: =Zadání!P226 -> 172 | F45: =Zadání!Q226 -> 6 | G45: =Zadání!R226 -> 523
A46: 6 | B46: =Zadání!M222 -> Portyšová Nikola | C46: =Zadání!N222 -> SKK Jičín | D46: =Zadání!O222 -> 379 | E46: =Zadání!P222 -> 188 | F46: =Zadání!Q222 -> 3 | G46: =Zadání!R222 -> 567
A47: 7 | B47: =Zadání!M218 -> Pytlíková Denisa | C47: =Zadání!N218 -> SKK Rokycany | D47: =Zadání!O218 -> 418 | E47: =Zadání!P218 -> 158 | F47: =Zadání!Q218 -> 7 | G47: =Zadání!R218 -> 576
A48: 8 | B48: =Zadání!M214 -> Lidman Linda | C48: =Zadání!N214 -> TJ Jiskra Hazlov | D48: =Zadání!O214 -> 365 | E48: =Zadání!P214 -> 205 | F48: =Zadání!Q214 -> 2 | G48: =Zadání!R214 -> 570
A49: 9 | B49: =Zadání!M210 -> Kubáčková Eliška | C49: =Zadání!N210 -> TJ Sokol Husovice | D49: =Zadání!O210 -> 381 | E49: =Zadání!P210 -> 171 | F49: =Zadání!Q210 -> 6 | G49: =Zadání!R210 -> 552
A50: 10 | B50: =Zadání!M206 -> Běhounová Michaela | C50: =Zadání!N206 -> TJ Jiskra Nová Bystřice | D50: =Zadání!O206 -> 352 | E50: =Zadání!P206 -> 169 | F50: =Zadání!Q206 -> 6 | G50: =Zadání!R206 -> 521
A51: 11 | B51: =Zadání!M202 -> Mašláňová Anna | C51: =Zadání!N202 -> TJ Kelč | D51: =Zadání!O202 -> 383 | E51: =Zadání!P202 -> 205 | F51: =Zadání!Q202 -> 1 | G51: =Zadání!R202 -> 588
A52: 12 | B52: =Zadání!M198 -> Šimková Jitka | C52: =Zadání!N198 -> SK Podlužan Prušánky | D52: =Zadání!O198 -> 371 | E52: =Zadání!P198 -> 175 | F52: =Zadání!Q198 -> 6 | G52: =Zadání!R198 -> 546
A53: 13 | B53: =Zadání!M194 -> Beranová Hana | C53: =Zadání!N194 -> SK Baník Ratíškovice | D53: =Zadání!O194 -> 351 | E53: =Zadání!P194 -> 182 | F53: =Zadání!Q194 -> 7 | G53: =Zadání!R194 -> 533
A54: 14 | B54: =Zadání!M190 -> Vrecková Hana | C54: =Zadání!N190 -> TJ Jiskra Nová Bystřice | D54: =Zadání!O190 -> 381 | E54: =Zadání!P190 -> 163 | F54: =Zadání!Q190 -> 8 | G54: =Zadání!R190 -> 544
A55: 15 | B55: =Zadání!M186 -> Pavelková Monika | C55: =Zadání!N186 -> TJ Spartak Přerov | D55: =Zadání!O186 -> 374 | E55: =Zadání!P186 -> 205 | F55: =Zadání!Q186 -> 5 | G55: =Zadání!R186 -> 579
A56: 16 | B56: =Zadání!M182 -> Zimáková Kristýna | C56: =Zadání!N182 -> KC Zlín | D56: =Zadání!O182 -> 370 | E56: =Zadání!P182 -> 144 | F56: =Zadání!Q182 -> 11 | G56: =Zadání!R182 -> 514
A57: 17 | B57: =Zadání!M178 -> Wajsarová Monika | C57: =Zadání!N178 -> TJ Dynamo Liberec | D57: =Zadání!O178 -> 376 | E57: =Zadání!P178 -> 203 | F57: =Zadání!Q178 -> 1 | G57: =Zadání!R178 -> 579
A58: 18 | B58: =Zadání!M174 -> Betuštiaková Stanislava | C58: =Zadání!N174 -> Sokol Nové Hrady | D58: =Zadání!O174 -> 364 | E58: =Zadání!P174 -> 158 | F58: =Zadání!Q174 -> 16 | G58: =Zadání!R174 -> 522
A59: 19 | B59: =Zadání!M170 -> Zajacová Michaela | C59: =Zadání!N170 -> KK Blansko | D59: =Zadání!O170 -> 383 | E59: =Zadání!P170 -> 166 | F59: =Zadání!Q170 -> 10 | G59: =Zadání!R170 -> 549
A60: 20 | B60: =Zadání!M166 -> Štursová Tereza | C60: =Zadání!N166 -> TJ Lomnice | D60: =Zadání!O166 -> 363 | E60: =Zadání!P166 -> 175 | F60: =Zadání!Q166 -> 5 | G60: =Zadání!R166 -> 538
A61: 21 | B61: =Zadání!M162 -> Žáčková Michaela | C61: =Zadání!N162 -> KK PSJ Jihlava | D61: =Zadání!O162 -> 341 | E61: =Zadání!P162 -> 163 | F61: =Zadání!Q162 -> 6 | G61: =Zadání!R162 -> 504
A62: 22 | B62: =Zadání!M158 -> Miláčková Klára | C62: =Zadání!N158 -> TJ Spartak Kutná Hora | D62: =Zadání!O158 -> 350 | E62: =Zadání!P158 -> 167 | F62: =Zadání!Q158 -> 11 | G62: =Zadání!R158 -> 517
A63: 23 | B63: =Zadání!M154 -> Utíkalová Karoline | C63: =Zadání!N154 -> TJ Jiskra Hazlov | D63: =Zadání!O154 -> 367 | E63: =Zadání!P154 -> 186 | F63: =Zadání!Q154 -> 3 | G63: =Zadání!R154 -> 553
A64: 24 | B64: =Zadání!M150 -> Buďová Tereza | C64: =Zadání!N150 -> TJ Nové Město na Moravě | D64: =Zadání!O150 -> 368 | E64: =Zadání!P150 -> 219 | F64: =Zadání!Q150 -> 1 | G64: =Zadání!R150 -> 587
A85: 1 | B85: Buďová Tereza | C85: TJ Nové Město na Moravě
A86: 2 | B86: Utíkalová Karoline | C86: TJ Jiskra Hazlov
A87: 3 | B87: Miláčková Klára | C87: TJ Spartak Kutná Hora
A88: 4 | B88: Žáčková Michaela | C88: KK PSJ Jihlava
A89: 5 | B89: Štursová Tereza | C89: TJ Lomnice
A90: 6 | B90: Zajacová Michaela | C90: KK Blansko
A91: 7 | B91: Betuštiaková Stanislava | C91: Sokol Nové Hrady
A92: 8 | B92: Wajsarová Monika | C92: TJ Dynamo Liberec
A93: 9 | B93: Zimáková Kristýna | C93: KC Zlín
A94: 10 | B94: Pavelková Monika | C94: TJ Spartak Přerov
A95: 11 | B95: Vrecková Hana | C95: TJ Jiskra Nová Bystřice
A96: 12 | B96: Beranová Hana | C96: SK Baník Ratíškovice
A97: 13 | B97: Šimková Jitka | C97: SK Podlužan Prušánky
A98: 14 | B98: Mašláňová Anna | C98: TJ Kelč
A99: 15 | B99: Běhounová Michaela | C99: TJ Jiskra Nová Bystřice
A100: 16 | B100: Kubáčková Eliška | C100: TJ Sokol Husovice
A101: 17 | B101: Lidman Linda | C101: TJ Jiskra Hazlov
A102: 18 | B102: Pytlíková Denisa | C102: SKK Rokycany
A103: 19 | B103: Portyšová Nikola | C103: SKK Jičín
A104: 20 | B104: Vašáková Barbora | C104: TJ Loko Ústí nad Labem
A105: 21 | B105: Niklová Monika | C105: TJ Sokol Vracov
A106: 22 | B106: Maněnová Monika | C106: TJ Šabina
A107: 23 | B107: Janyšková Barbora | C107: TJ Sokol Sedlnice
A108: 24 | B108: Topičová Natálie | C108: KK Slovan Rosice

Sheet Prezence a los
B1: Počet hráčů: | C1: =COUNTA(E2:E37) -> 36
A2: 1 | B2: Buďová Tereza | C2: TJ Nové Město na Moravě | D2: J 3 | E2: x | G2: Návod
A3: 2 | B3: Betuštiaková Stanislava | C3: Sokol Nové Hrady | D3: E 3 | E3: x | G3: !!! Pro práci se souborem je nutné mít povolená makra
A4: 3 | B4: Kubáčková Eliška | C4: TJ Sokol Husovice | D4: B 4 | E4: x | G4: Na listu Prezence se uvedou jména hráčů a oddíl - vhodné udělat předem dle přihlášek z krajů
A5: 4 | B5: Beranová Hana | C5: SK Baník Ratíškovice | D5: B 3 | E5: x | G5: B - Jméno, C - Oddíl, D - kraj+číslo
A6: 5 | B6: Betuštiaková Natálie | C6: Sokol Nové Hrady | D6: E 2 | E6: x | G6: Přítomné označ křížkem ve sloupci E - lze použít pro kontrolu prezence
A7: 6 | B7: Kusiová Aneta | C7: KK Slavoj Žirovnice | D7: J 2 | E7: x | G7: - z listu Prezence se jména přenáší automaticky na list Zadání
A8: 7 | B8: Šimková Jitka | C8: SK Podlužan Prušánky | D8: M/T 5 | E8: x | G8: Na listu Zadání se zadávají výkony po třicítkách, vždy zde vyplňuj jen žlutá pole
A9: 8 | B9: Niklová Monika | C9: TJ Sokol Vracov | D9: B 2 | E9: x | G9: Na listu Výstup se shromažďují všechna podstatná data
A10: 9 | B10: Zajacová Michaela | C10: KK Blansko | D10: M/T 4 | E10: x | G10: - při kvalifikaci se vše kopíruje a řadí stiskem tlačítka Kvalifikace
A11: 10 | B11: Dinnebierová Ilona | C11: TJ Start Jihlava | D11: J 1 | E11: x | G11: - obdobně při finále stiskem tlačítka Finále
A12: 11 | B12: Topičová Natálie | C12: KK Slovan Rosice | D12: B 1 | E12: x | G12: POZOR - po ukončení kvalifikace stiskni tlačítko Přenos - jen jednou, během finále už toto tlačítko nepoužívej !!
A13: 12 | B13: Presová Veronika | C13: TJ Sokol Vracov | D13: E 1 | E13: x | G13: (tím se přenesou jména finalistů do Zadání a lze zadávat výkony)
A14: 13 | B14: Fejfarová Martina | C14: SKK Vrchlabí | D14: H 2 | E14: x
A15: 14 | B15: Mašlaňová Anna | C15: TJ Kelč | D15: Z 3 | E15: x | G15: Poznámka - na list Výstup se kopírují jen "tvrdá" data a vše se po každém bloku hráček
A16: 15 | B16: Běhounová Michaela | C16: TJ Jiskra Nová Bystřice | D16: C 2 | E16: x | G16: znovu přepisuje a řadí tím je zabezpečeno, že se data neztratí
A17: 16 | B17: Žáčková Michaela | C17: KK PSJ Jihlava | D17: M/T 3 | E17: x | G17: Data se vyplňují pouze na listech Zadání a Prezence, v žádném případě nemodifikuj list Export
A18: 17 | B18: Pavelková Monika | C18: TJ Spartak Přerov | D18: M/T 2 | E18: x
A19: 18 | B19: Vrecková Hana | C19: TJ Jiskra Nová Bystřice | D19: C 1 | E19: x
A20: 19 | B20: Nálevková Denisa | C20: SKK Hořice | D20: H 1 | E20: x
A21: 20 | B21: Šustková Petra | C21: KC Zlín | D21: Z 2 | E21: x
A22: 21 | B22: Portyšová Nikola | C22: SKK Jičín | D22: A 2 | E22: x
A23: 22 | B23: Miláčková Klára | C23: TJ Spartak Kutná Hora | D23: S 2 | E23: x
A24: 23 | B24: Zimáková Kristýna | C24: KC Zlín | D24: Z 1 | E24: x
A25: 24 | B25: Janyšková Barbora | C25: TJ Sokol Sedlnice | D25: M/T 1 | E25: x
A26: 25 | B26: Weissová Michaela | C26: KK Jiří Poděbrady | D26: A 1 | E26: x
A27: 26 | B27: Vajdíková Lucie | C27: TJ Lomnice | D27: K 3 | E27: x
A28: 27 | B28: Wajsarová Monika | C28: TJ Dynamo Liberec | D28: L 3 | E28: x
A29: 28 | B29: Doškářová Anna | C29: KK Kosmonosy | D29: S 1 | E29: x
A30: 29 | B30: Štursová Tereza | C30: TJ Lomnice | D30: K 2 | E30: x
A31: 30 | B31: Rubášová Michaela | C31: TJ Sokol Kdyně | D31: P 2 | E31: x
A32: 31 | B32: Lidman Linda | C32: TJ Jiskra Hazlov | D32: L 2 | E32: x
A33: 32 | B33: Schuldová Radka | C33: Kuželky Holýšov | D33: U 2 | E33: x
A34: 33 | B34: Pytlíková Denisa | C34: SKK Rokycany | D34: P 1 | E34: x
A35: 34 | B35: Maněnová Monika | C35: TJ Šabina | D35: L 1 | E35: x
A36: 35 | B36: Vašáková Barbora | C36: TJ Loko Ústí nad Labem | D36: U 1 | E36: x
A37: 36 | B37: Utíkalová Karoline | C37: TJ Jiskra Hazlov | D37: K 1 | E37: x
